bitfinex/quotes_ETHUSD_20260109
["timestamp","ask_amount","ask_price","bid_price","bid_amount"]
[1767979203649,0.002,3109.0,3108.3,0.00080176]
[1767979203851,0.002,3109.0,3108.3,0.90361722]
[1767979204362,0.252,3109.5,3108.3,0.90361722]
[1767979204887,0.00080136,3109.6,3108.5,0.90281546]
[1767979205095,0.00080136,3109.6,3108.7,0.90281546]
[1767979205456,0.00080136,3109.6,3108.8,3.21667524]
[1767979205651,0.00080136,3109.6,3108.4,3.21703454]
[1767979205652,0.99988873,3109.6,3108.4,3.21703454]
[1767979205865,0.00080136,3109.6,3108.7,4.11957988]
[1767979206068,0.00080136,3109.6,3108.8,0.90281546]
[1767979206275,0.00080136,3109.6,3109.0,0.90281546]
[1767979207249,0.002,3110.3,3109.2,0.90281546]
[1767979207452,0.002,3110.3,3109.5,6.43190222]
[1767979207670,0.002,3110.3,3109.5,3.21595111]
[1767979207985,0.002,3110.3,3109.6,0.90281546]
[1767979208166,0.002,3110.3,3109.7,1.63628723]
[1767979208788,0.00080064,3110.6,3109.8,0.90281546]
[1767979209375,0.00080064,3110.6,3109.7,0.98647177]
[1767979209563,0.00080064,3110.6,3109.8,3.21564087]
[1767979209897,0.00080064,3110.6,3109.8,7.3340972]
[1767979210068,0.00080064,3110.6,3109.9,0.8320569]
[1767979210274,0.00080064,3110.6,3109.7,3.21565395]
[1767979210702,0.99908737,3110.5,3109.3,3.21689969]
[1767979211195,0.25280064,3110.6,3109.7,3.2157083]
[1767979211561,0.25280064,3110.6,3109.5,3.21593671]
[1767979211562,6.43042836,3110.6,3109.5,0.90281546]
[1767979211794,7.19857993,3110.6,3109.5,4.11870954]
[1767979211968,3.98376607,3110.6,3109.5,7.33466065]
[1767979213069,0.00080064,3110.6,3109.5,7.33466065]
[1767979213396,0.00080064,3110.6,3109.7,0.90281546]
[1767979213603,0.00080064,3110.6,3109.8,6.43128174]
[1767979213768,0.00080064,3110.6,3109.9,0.90281546]
[1767979214400,0.00080064,3110.6,3109.3,0.90362829]
[1767979214697,0.99988801,3110.6,3109.4,0.253]
[1767979214875,0.99988801,3110.6,3109.6,3.21579061]
[1767979215072,0.002,3110.3,3109.6,3.88427301]
[1767979215278,0.002,3110.3,3109.7,3.21571856]
[1767979216701,0.002,3110.3,3109.6,3.88431869]
[1767979217267,0.002,3110.3,3109.6,0.6684824]
[1767979217462,0.002,3110.3,3109.6,3.21582166]
[1767979218000,0.002,3110.3,3109.5,6.43190222]
[1767979218367,0.002,3110.3,3109.5,10.55066879]
[1767979218596,0.002,3110.3,3109.5,7.33471768]
[1767979219466,0.002,3110.3,3109.4,3.21602029]
[1767979219790,1.00108737,3110.3,3109.4,3.79078375]
[1767979220010,0.99908737,3110.1,3109.3,0.00081283]
[1767979220317,0.99908737,3110.1,3109.2,0.00080144]
[1767979220318,0.00080144,3109.6,3108.3,0.90361722]
[1767979220473,0.00080144,3109.6,3108.4,0.75912096]
[1767979221903,0.99988881,3109.6,3108.4,0.75912096]
[1767979222099,3.21595111,3109.5,3108.5,3.21698568]
[1767979222403,0.99908737,3109.4,3108.4,3.97619286]
[1767979223032,0.99908737,3109.4,3108.4,3.97619308]
[1767979223181,0.74309896,3109.3,3108.4,3.21707212]
[1767979224135,0.74309896,3109.3,3108.3,0.00080176]
[1767979224428,0.99908737,3109.4,3108.3,0.00080176]
[1767979224601,4.21515635,3109.4,3108.3,0.00080176]
[1767979224807,7.43122533,3109.4,3108.3,0.00080176]
[1767979225113,0.99908737,3109.3,3108.3,0.00080176]
[1767979226389,0.99908737,3109.1,3108.3,0.00080176]
[1767979226593,1.99424839,3109.0,3108.3,0.00080176]
[1767979227302,1.99424839,3109.0,3108.6,0.001]
[1767979227489,0.001,3108.6,3108.3,0.00080176]
[1767979228321,1.00008737,3108.6,3108.3,0.00080176]
[1767979228501,1.00008737,3108.6,3107.7,0.00080112]
[1767979229784,1.00008737,3108.6,3107.7,0.64769603]
[1767979229992,0.001,3108.6,3107.8,0.0321771]
[1767979230196,0.001,3108.6,3107.8,0.90281546]
[1767979230528,0.001,3108.6,3107.8,3.21766888]
[1767979230729,1.00008737,3108.6,3107.7,1.55051149]
[1767979231023,1.00008737,3108.6,3107.7,0.90361658]
[1767979231525,1.00008737,3108.6,3107.7,0.00080112]
[1767979232726,4.21607305,3108.5,3107.7,0.00080112]
[1767979234636,4.21608145,3108.5,3107.7,0.00080112]
[1767979235113,4.21609598,3108.5,3107.7,0.00080112]
[1767979235306,4.95956665,3108.5,3107.7,0.00080112]
[1767979236125,0.95872083,3108.4,3107.7,0.00080112]
[1767979236625,4.1759135,3108.3,3107.7,0.00080112]
[1767979237927,0.95872083,3108.3,3107.7,0.00080112]
[1767979238132,0.001,3108.6,3107.7,0.92199378]
[1767979238432,0.00080144,3109.6,3108.3,0.9219945]
[1767979238728,0.00080144,3109.6,3108.7,0.92119266]
[1767979238903,0.00080144,3109.6,3108.8,1.05718392]
[1767979239105,0.00080144,3109.6,3108.9,0.92119266]
[1767979239329,0.002,3110.3,3109.3,0.9220063]
[1767979240331,0.00280064,3111.2,3110.3,0.92119266]
[1767979240497,0.00280064,3111.2,3110.4,1.17419266]
[1767979240700,0.00280064,3111.2,3110.5,3.46791721]
[1767979241029,0.00280064,3111.2,3110.6,0.59979172]
[1767979241605,0.00280064,3111.2,3110.6,0.34679172]
[1767979241814,0.00280064,3111.2,3110.4,3.21502057]
[1767979242702,0.96152147,3111.2,3110.2,0.00080072]
[1767979243108,0.00280064,3111.2,3110.3,3.21505097]
[1767979243320,0.00280064,3111.2,3110.2,3.21602371]
[1767979243504,0.00280064,3111.2,3110.2,3.21597431]
[1767979243703,0.00280064,3111.2,3110.3,0.64313019]
[1767979244311,0.96152147,3111.2,3110.4,3.21496789]
[1767979244535,0.96152147,3111.2,3110.3,3.8582182]
[1767979244835,0.002,3111.3,3110.8,0.00080072]
[1767979245002,0.002,3111.3,3110.3,3.8582182]
[1767979245003,0.00080072,3111.2,3110.3,3.8582182]
[1767979245197,0.00080072,3111.2,3110.4,0.38590189]
[1767979245654,0.95952155,3111.2,3110.2,0.00080072]
[1767979245939,0.95952155,3111.2,3110.3,3.21506029]
[1767979246135,0.95952155,3111.2,3110.3,6.43018423]
[1767979246136,0.00080072,3111.2,3110.3,6.43018423]
[1767979246341,0.00080072,3111.2,3110.3,3.21506029]
[1767979246636,0.00080072,3111.2,3110.4,0.3215861]
[1767979247343,0.00080072,3111.2,3110.3,0.253]
[1767979247505,0.00080072,3111.2,3110.3,3.46805927]
[1767979247710,0.00080072,3111.2,3110.4,6.43002397]
[1767979247904,0.00080072,3111.2,3110.4,3.2150034]
[1767979248243,0.00080072,3111.2,3110.4,6.43002397]
[1767979248441,0.00080072,3111.2,3110.5,0.76042166]
[1767979249246,0.00080072,3111.2,3110.6,3.21481386]
[1767979250346,0.00080072,3111.2,3110.6,6.42962772]
[1767979250535,0.002,3111.6,3110.9,0.9011234]
[1767979250845,0.002,3111.6,3111.0,0.253]
[1767979251030,0.002,3111.2,3111.0,0.253]
[1767979251232,0.002,3111.2,3110.8,0.0008008]
[1767979251421,0.002,3111.2,3110.9,0.253]
[1767979251746,0.002,3111.2,3110.8,0.32236227]
[1767979253448,0.002,3111.2,3110.8,3.53693645]
[1767979255819,0.002,3111.2,3110.8,0.32236227]
[1767979256235,0.002,3111.2,3110.8,0.0008008]
[1767979256935,0.002,3111.2,3110.0,0.9011234]
[1767979256936,0.91056308,3111.2,3110.0,0.253]
[1767979257130,0.91056308,3111.2,3109.7,0.9011234]
[1767979257131,0.92378176,3111.1,3109.7,0.9011234]
[1767979257336,0.92378176,3111.1,3109.9,0.253]
[1767979257538,0.92378176,3111.1,3110.2,3.2160214]
[1767979257719,3.21440051,3111.0,3110.2,0.00080072]
[1767979257915,0.41409831,3111.0,3110.2,0.00080072]
[1767979258115,0.0028008,3111.2,3110.2,0.00080072]
[1767979258461,7.33895354,3111.2,3110.2,0.00080072]
[1767979258969,0.90776228,3111.1,3110.2,0.00080072]
[1767979259856,0.90776228,3110.9,3110.2,0.00080072]
[1767979260049,0.90776228,3110.7,3110.2,0.00080072]
[1767979261523,0.908563,3110.6,3109.6,0.253]
[1767979262053,3.21563385,3110.6,3109.7,3.21574428]
[1767979262254,0.00080072,3110.6,3109.7,6.43148856]
[1767979262454,0.00080072,3110.6,3109.8,0.9011234]
[1767979262658,4.12476214,3111.2,3110.5,0.001]
[1767979262853,6.43122484,3111.2,3110.5,0.001]
[1767979263152,3.21699468,3111.2,3110.5,0.001]
[1767979263556,0.0028008,3111.2,3110.5,0.001]
[1767979265458,0.0028008,3111.2,3110.5,0.99682143]
[1767979266055,0.0028008,3111.2,3110.6,3.21481386]
[1767979266240,0.0028008,3111.2,3110.6,3.95726161]
[1767979266629,0.0028008,3111.2,3110.6,7.17207547]
[1767979267165,0.002,3111.6,3110.8,0.00080088]
[1767979267329,0.96756499,3111.5,3110.8,0.00080088]
[1767979268422,0.96756499,3111.4,3110.8,0.00080088]
[1767979269260,0.002,3111.6,3110.8,0.32235889]
[1767979269261,4.18334592,3111.6,3110.8,0.32235889]
[1767979269458,0.96756499,3111.5,3110.8,0.00080088]
[1767979270739,0.96756499,3111.4,3110.8,0.00080088]
[1767979270941,0.96756499,3110.9,3110.2,0.0008008]
[1767979271562,0.98358447,3110.8,3110.2,0.0008008]
[1767979271744,0.96756499,3110.7,3110.2,0.0008008]
[1767979272060,0.96756499,3110.7,3109.4,3.46895479]
[1767979272061,0.0008008,3110.6,3109.4,3.46895479]
[1767979272361,0.0008008,3110.6,3109.5,3.5629069]
[1767979272659,6.43042852,3110.6,3109.5,3.5629069]
[1767979273436,6.43042852,3110.6,3109.5,0.59997684]
[1767979273848,6.43042852,3110.6,3109.5,0.34697684]
[1767979274050,3.21561466,3110.6,3109.4,0.25122326]
[1767979274573,3.21561466,3110.6,3109.6,0.99582143]
[1767979274574,0.0008008,3110.6,3109.6,0.99582143]
[1767979274970,0.96836579,3110.6,3109.6,0.253]
[1767979275470,0.0008008,3110.6,3109.6,0.253]
[1767979276431,0.0008008,3110.6,3109.7,3.21574428]
[1767979276633,0.0008008,3110.6,3109.7,3.98377621]
[1767979278468,0.0008008,3110.6,3109.7,7.19952049]
[1767979279069,0.0008008,3110.6,3109.7,3.98377621]
[1767979279229,0.0008008,3110.6,3109.7,7.19952049]
[1767979279435,0.0008008,3110.6,3109.8,0.99582143]
[1767979279657,4.18459277,3111.2,3110.2,0.00080088]
[1767979279871,0.96756499,3111.1,3110.2,0.00080088]
[1767979280074,0.98358447,3111.1,3110.2,0.25380088]
[1767979280569,0.96756499,3110.9,3110.2,0.00080088]
[1767979280772,0.96756499,3110.7,3110.2,0.00080088]
[1767979281080,0.96836587,3110.6,3109.8,0.253]
[1767979281641,0.96836587,3110.6,3109.8,3.46864006]
[1767979281865,0.00080088,3110.6,3109.7,3.2157078]
[1767979282172,0.00080088,3110.6,3109.8,0.253]
[1767979282780,3.21561474,3110.6,3109.8,0.253]
[1767979282949,3.90206283,3110.6,3109.8,0.253]
[1767979283373,0.68724897,3110.6,3109.8,3.46861204]
[1767979283674,0.00080088,3110.6,3109.9,0.0321206]
[1767979284274,0.00080088,3110.6,3109.8,3.46861204]
[1767979284275,0.00080088,3110.6,3109.8,6.68425291]
[1767979284578,0.00080088,3110.6,3109.8,7.68007434]
[1767979284872,0.00080088,3110.6,3109.8,3.21561204]
[1767979285041,0.96836587,3110.6,3109.9,0.253]
[1767979286274,0.00080088,3110.6,3109.9,0.92142529]
[1767979287070,0.00080088,3110.6,3110.1,0.001]
[1767979287273,0.002,3110.3,3110.1,0.001]
[1767979288280,0.002,3110.3,3109.9,0.253]
[1767979288667,0.002,3110.3,3109.7,3.46873472]
[1767979288856,0.002,3110.3,3109.6,3.21584617]
[1767979289170,0.002,3110.3,3109.7,0.253]
[1767979290906,0.96956499,3110.3,3109.3,0.00081364]
[1767979291183,0.96756499,3110.1,3109.3,0.00081364]
[1767979291348,0.96756499,3109.9,3109.3,0.00081364]
[1767979292185,4.19881178,3110.2,3109.3,0.00081364]
[1767979292352,0.002,3110.3,3109.3,0.00081364]
[1767979292543,0.002,3110.3,3109.3,0.99663507]
[1767979292747,0.002,3110.3,3109.4,1.24882143]
[1767979292948,0.002,3110.3,3109.5,3.21595111]
[1767979293184,0.002,3110.3,3109.4,3.4690036]
[1767979293390,0.002,3110.3,3109.5,0.66859724]
[1767979293910,0.002,3110.3,3109.5,1.61967335]
[1767979294549,0.002,3110.3,3109.6,0.95107611]
[1767979295051,0.002,3110.3,3109.8,0.95107611]
[1767979295254,0.00280088,3110.6,3110.0,0.95107611]
[1767979296247,0.00280088,3110.6,3110.0,0.94975815]
[1767979297257,0.00080088,3110.6,3110.1,7.38173749]
[1767979297448,0.00080088,3110.6,3110.2,0.73897471]
[1767979297893,0.97791946,3111.5,3110.8,0.00080096]
[1767979298225,0.97791946,3111.5,3110.2,0.73897471]
[1767979298226,0.97591946,3111.1,3110.2,0.99197471]
[1767979298509,0.97591946,3111.1,3110.2,0.00080096]
[1767979298811,0.97591946,3110.9,3110.2,0.00080096]
[1767979299377,1.22872042,3111.2,3110.2,0.32242432]
[1767979299614,0.25280096,3111.2,3110.2,0.32242432]
[1767979299978,3.46700566,3111.2,3110.5,0.001]
[1767979300281,0.25280096,3111.2,3110.5,0.001]
[1767979300810,0.25280096,3111.2,3110.2,0.00080096]
[1767979300811,0.97591946,3110.9,3110.2,0.00080096]
[1767979300978,0.00080096,3110.6,3109.9,4.1665695]
[1767979301178,0.00080096,3110.6,3109.6,0.253]
[1767979301179,0.00080096,3110.6,3110.1,6.43066138]
[1767979301448,0.00080096,3110.6,3110.1,6.68366138]
[1767979302482,0.00080096,3110.6,3110.1,7.63473749]
[1767979303500,0.00080096,3111.2,3110.2,0.95187715]
[1767979304714,0.00080096,3111.2,3110.3,0.253]
[1767979305613,0.00080096,3111.2,3110.4,3.21502057]
[1767979305793,0.00080096,3111.2,3110.4,6.87203091]
[1767979305994,0.00080096,3111.2,3110.5,0.253]
[1767979306189,0.00080096,3111.2,3110.5,1.20407611]
[1767979307919,0.00080096,3111.2,3110.6,3.21481386]
[1767979308131,0.00080096,3111.2,3110.6,6.42962772]
[1767979308302,0.00080096,3111.2,3110.7,0.76337038]
[1767979310233,0.00080128,3111.8,3110.9,0.96373567]
[1767979310436,0.00080128,3111.8,3111.0,1.21673567]
[1767979310727,0.00080128,3111.8,3111.1,1.21673567]
[1767979310927,0.00080128,3111.8,3111.1,0.96373567]
[1767979311241,0.00080128,3111.8,3110.8,13.50462255]
[1767979311242,0.00080128,3111.8,3111.2,0.253]
[1767979311938,0.00080128,3111.8,3111.2,1.21673567]
[1767979312143,0.00080128,3111.8,3111.2,3.21417267]
[1767979312301,0.00080128,3111.8,3111.3,0.253]
[1767979312906,0.00080128,3111.8,3111.2,3.85702728]
[1767979313109,0.00080128,3111.8,3111.3,0.253]
[1767979313304,0.00080128,3111.8,3111.2,3.85702728]
[1767979314636,0.00080128,3111.8,3111.2,4.11002728]
[1767979314812,0.00080128,3111.8,3111.3,0.73243115]
[1767979316472,0.00080128,3111.8,3111.3,3.9464782]
[1767979316636,0.00080128,3111.8,3111.3,0.73243115]
[1767979316802,0.00080128,3111.8,3111.2,3.46715619]
[1767979317002,0.00080128,3111.8,3111.3,3.21408859]
[1767979317437,0.00080128,3111.8,3111.2,3.46712252]
[1767979317637,0.00080128,3111.8,3111.2,0.253]
[1767979317843,0.00080128,3111.8,3111.3,3.21408313]
[1767979318019,0.00080128,3111.8,3111.4,0.66812704]
[1767979318416,0.002,3111.9,3111.5,3.21388397]
[1767979319044,0.002,3112.5,3111.6,0.96373567]
[1767979319218,0.002,3112.5,3111.7,1.21673567]
[1767979320541,0.00080112,3112.7,3112.0,0.96373567]
[1767979320853,0.002,3113.2,3112.4,0.00081283]
[1767979321054,0.94279648,3113.2,3112.5,0.253]
[1767979321209,0.94279648,3113.2,3112.4,0.00081283]
[1767979321410,0.94279648,3113.2,3112.5,0.253]
[1767979321636,0.002,3113.2,3112.5,0.253]
[1767979322411,0.002,3113.2,3112.7,3.21264497]
[1767979322609,0.002,3113.2,3112.7,6.42528994]
[1767979322836,0.002,3113.2,3112.7,8.0316657]
[1767979323035,0.0028016,3113.7,3113.1,0.93864677]
[1767979323343,0.0028016,3113.7,3112.7,10.3056639]
[1767979323344,0.90814266,3113.7,3112.7,3.88037396]
[1767979323508,0.90814266,3113.7,3112.8,0.252]
[1767979323709,4.1197736,3113.7,3112.8,0.252]
[1767979323966,4.1197736,3113.7,3112.7,3.21264497]
[1767979324147,0.90534106,3113.6,3112.8,0.252]
[1767979324646,0.90534106,3113.6,3112.9,3.21243856]
[1767979325244,0.0028016,3113.7,3112.9,0.66770711]
[1767979326025,0.90814266,3113.7,3112.9,0.66770711]
[1767979326350,3.21184233,3114.3,3112.9,0.93864677]
[1767979326512,7.3282246,3114.3,3113.3,0.00080168]
[1767979326712,7.3282246,3114.3,3113.3,0.25280168]
[1767979326949,0.90534106,3114.2,3113.3,0.25280168]
[1767979327247,0.90534106,3114.0,3113.3,0.00080168]
[1767979327616,0.73282246,3114.1,3113.3,0.00080168]
[1767979328218,0.90534106,3114.0,3113.3,0.00080168]
[1767979328518,0.73282246,3114.1,3113.3,0.00080168]
[1767979328718,0.00080168,3113.7,3113.1,3.21215287]
[1767979328919,0.00080168,3113.7,3113.1,0.44027996]
[1767979329123,0.00080168,3113.7,3113.0,3.46431453]
[1767979329322,0.00080168,3113.7,3113.0,4.1509613]
[1767979329622,0.00080168,3113.7,3113.1,0.93864677]
[1767979331027,0.00080168,3113.7,3113.2,3.21212899]
[1767979331227,0.00080168,3113.7,3113.1,4.15085601]
[1767979331525,0.00080168,3113.7,3112.4,0.00081283]
[1767979331526,0.01601948,3113.0,3112.4,0.00081283]
[1767979332035,0.01601948,3113.0,3111.8,3.21349023]
[1767979332036,0.0008012,3112.7,3111.7,3.21365757]
[1767979332235,0.0008012,3112.7,3111.8,3.21356932]
[1767979332435,0.0008012,3112.7,3111.7,3.21361183]
[1767979332636,0.0008012,3112.7,3111.7,3.95032332]
[1767979332835,0.01601948,3112.6,3111.6,0.001]
[1767979333045,3.2128514,3112.5,3111.6,0.001]
[1767979333346,0.92136054,3112.6,3111.6,0.001]
[1767979333529,3.21344663,3112.7,3111.6,0.92117092]
[1767979333727,0.0008012,3112.7,3111.7,0.93864677]
[1767979334644,0.0008012,3112.7,3111.8,0.252]
[1767979334843,0.0008012,3112.7,3111.6,0.66917092]
[1767979335048,0.0008012,3112.7,3111.8,6.42714826]
[1767979335253,0.0008012,3112.7,3112.0,0.93864677]
[1767979335841,0.00081283,3112.8,3112.3,0.00080128]
[1767979336142,0.00081283,3112.8,3112.7,0.001]
[1767979344776,0.00081283,3112.8,3112.3,0.00080128]
[1767979344980,0.00081283,3112.8,3111.6,3.21473208]
[1767979344981,0.90534106,3112.6,3111.6,3.21473208]
[1767979345288,0.01682076,3112.7,3111.8,3.21355648]
[1767979345894,3.21274818,3112.6,3111.7,3.21362978]
[1767979346089,0.01682076,3112.7,3111.7,6.42730719]
[1767979346257,0.01682076,3112.7,3111.7,4.15227655]
[1767979346591,3.22948489,3112.7,3111.7,4.15227655]
[1767979346888,0.32302977,3112.6,3111.7,7.36595396]
[1767979347073,0.00080128,3112.7,3111.7,7.36595396]
[1767979347268,3.21351724,3112.7,3111.7,7.36595396]
[1767979347668,3.21351724,3112.7,3111.7,6.42730719]
[1767979348070,3.21351724,3112.7,3112.0,0.001]
[1767979348591,0.00080128,3112.7,3112.0,0.001]
[1767979349403,0.00080128,3112.7,3112.0,0.253]
[1767979349897,3.21274818,3112.6,3112.0,0.001]
[1767979350220,1.22755321,3112.7,3112.0,0.001]
[1767979350221,0.00080128,3112.7,3112.0,0.001]
[1767979351791,0.00080128,3112.7,3112.0,3.2143676]
[1767979351992,0.00080128,3112.7,3112.1,0.93864677]
[1767979352180,3.47976413,3113.6,3112.0,9.6411028]
[1767979352181,3.21185028,3113.5,3112.3,0.93864677]
[1767979352382,3.65044097,3113.5,3112.4,0.00081364]
[1767979352774,3.65044097,3113.5,3112.4,0.93946041]
[1767979352775,0.43859069,3113.5,3112.4,0.93946041]
[1767979353292,3.65043003,3113.5,3112.4,0.93946041]
[1767979354195,0.43859069,3113.5,3112.5,6.4257028]
[1767979354394,3.65041467,3113.5,3112.5,8.11618953]
[1767979354696,0.00080168,3113.7,3112.5,8.11618953]
[1767979354863,0.00080168,3113.7,3112.6,0.95389027]
[1767979355062,0.00080168,3113.7,3112.8,0.95389027]
[1767979356294,0.00080168,3113.7,3112.9,4.16632883]
[1767979356666,0.00080168,3113.7,3112.9,3.21243856]
[1767979356861,0.00080168,3113.7,3112.9,0.34644386]
[1767979357079,0.00080168,3113.7,3112.7,3.46457491]
[1767979357267,0.00080168,3113.7,3112.8,3.21252184]
[1767979357467,0.00080168,3113.7,3112.7,3.46463469]
[1767979357666,0.00080168,3113.7,3112.8,3.21253359]
[1767979358105,0.00080168,3113.7,3112.8,6.42507535]
[1767979358408,0.00080168,3113.7,3112.9,0.9889719]
[1767979358704,0.00080168,3113.7,3113.0,3.21233536]
[1767979359105,0.00080168,3113.7,3113.0,6.42467072]
[1767979359306,0.00080168,3113.7,3113.0,7.37856099]
[1767979359473,0.002,3113.4,3113.0,7.37856099]
[1767979359678,0.00280168,3113.7,3113.1,0.9898561]
[1767979360702,0.00280168,3113.7,3113.2,3.21212899]
[1767979361608,0.00280168,3113.7,3113.2,0.252]
[1767979362382,0.00280168,3113.7,3113.1,0.9898561]
[1767979362610,0.00280168,3113.7,3113.1,7.41428773]
[1767979362908,0.00280168,3113.7,3113.2,0.74142877]
[1767979364308,0.00280168,3113.7,3113.2,1.69531904]
[1767979364810,0.00280168,3113.7,3113.3,3.21202582]
[1767979365604,0.00280168,3113.7,3113.2,4.90739186]
[1767979365810,0.00280168,3113.7,3113.2,4.90741]
[1767979366011,0.00280168,3113.7,3113.3,0.515941]
[1767979366579,0.00280168,3113.7,3113.3,3.72786964]
[1767979366913,0.002,3114.5,3113.4,0.95389027]
[1767979367114,0.002,3114.5,3113.9,0.0008012]
[1767979368808,0.002,3114.5,3113.9,6.42361502]
[1767979369037,0.002,3114.5,3114.0,0.74132085]
[1767979369432,0.002,3114.5,3113.9,0.0008012]
[1767979370615,0.002,3114.5,3113.9,0.99039471]
[1767979370812,0.002,3114.5,3114.0,6.42260756]
[1767979371193,0.002,3114.5,3113.9,4.20176175]
[1767979371504,0.00080144,3114.9,3114.2,0.98959351]
[1767979371710,0.00080144,3114.9,3113.9,3.21216824]
[1767979371711,0.99629326,3114.9,3113.9,3.21216824]
[1767979371900,1.41734676,3114.9,3114.0,0.252]
[1767979372610,0.00080144,3114.9,3114.1,0.98959351]
[1767979372831,0.00080144,3114.9,3114.3,0.98959351]
[1767979375104,0.00080144,3114.9,3114.4,7.41137619]
[1767979375306,0.00080144,3114.9,3114.5,0.252]
[1767979375727,0.002,3115.4,3114.6,0.98959351]
[1767979376438,0.00280184,3115.8,3115.1,0.98959351]
[1767979376737,0.00280184,3115.8,3115.2,0.252]
[1767979376900,0.00280184,3115.8,3115.3,0.98959351]
[1767979377337,3.20872773,3116.5,3115.5,0.00081769]
[1767979377539,0.99549182,3116.3,3115.5,0.00081769]
[1767979378239,6.41745546,3116.5,3115.5,0.00081769]
[1767979378240,0.99549182,3116.5,3115.5,0.00081769]
[1767979378409,1.0115113,3116.5,3115.5,0.00081769]
[1767979379321,0.99549182,3116.3,3115.5,0.00081769]
[1767979379709,3.20876763,3116.5,3115.5,0.00081769]
[1767979380050,1.24749182,3116.9,3115.5,0.9904112]
[1767979380051,3.20852183,3116.7,3115.5,0.9904112]
[1767979380336,3.20926625,3116.8,3115.5,0.9904112]
[1767979380657,0.00080208,3117.4,3116.5,0.98959351]
[1767979380806,0.00080208,3117.4,3115.5,0.00081769]
[1767979380807,0.99549182,3117.3,3116.4,0.00080192]
[1767979381006,0.99629374,3116.8,3115.5,0.00081769]
[1767979381220,3.20852183,3116.7,3115.7,3.20955162]
[1767979381419,3.20852183,3116.7,3115.7,4.19914513]
[1767979381629,3.20852183,3116.7,3115.8,0.98959351]
[1767979381912,0.32093238,3116.6,3115.6,3.46163392]
[1767979382318,0.99549182,3116.5,3115.5,0.00081769]
[1767979382709,0.99549182,3116.5,3115.5,0.25281769]
[1767979383019,0.99549182,3116.5,3115.6,3.20963795]
[1767979383205,0.00080192,3116.8,3115.6,4.18330884]
[1767979383543,0.002,3116.5,3115.7,0.51577974]
[1767979385542,0.002,3116.5,3115.7,3.72528866]
[1767979386625,0.002,3116.5,3115.7,6.93484028]
[1767979389957,0.96577261,3116.5,3115.7,0.51577974]
[1767979390152,0.96577261,3116.5,3115.5,0.00081769]
[1767979390362,0.96577261,3116.5,3115.6,0.252]
[1767979390561,0.96577261,3116.5,3115.5,0.00081769]
[1767979390727,0.96577261,3116.5,3115.5,0.25281769]
[1767979391472,0.96577261,3116.5,3115.5,3.46251312]
[1767979391646,0.96377261,3116.4,3115.5,0.00081769]
[1767979391851,3.20893367,3116.3,3115.5,0.00081769]
[1767979392028,1.70193393,3116.2,3115.5,0.00081769]
[1767979392431,0.96377261,3116.1,3115.5,0.00081769]
[1767979392868,0.96457453,3115.8,3114.9,3.21036176]
[1767979393363,0.96457453,3115.8,3114.4,4.18548639]
[1767979393364,0.96457453,3115.8,3114.6,3.21062873]
[1767979393658,0.96457453,3115.8,3114.6,3.46267553]
[1767979393837,0.96377261,3115.6,3114.4,0.001]
[1767979394041,1.70214039,3115.6,3114.5,0.25280152]
[1767979394467,0.96377261,3115.5,3114.5,0.00080152]
[1767979395334,0.73836778,3115.6,3114.5,0.00080152]
[1767979395939,0.73836778,3115.6,3114.6,6.42137032]
[1767979396138,0.73836778,3115.6,3114.7,0.73958427]
[1767979396641,3.94803167,3115.6,3114.7,0.73958427]
[1767979396943,0.73836778,3115.6,3114.7,0.73958427]
[1767979397335,3.94803663,3115.6,3114.7,0.73958427]
[1767979397540,4.91180924,3115.6,3114.7,0.73958427]
[1767979398101,0.96377261,3115.4,3114.5,0.00080152]
[1767979398382,0.96377261,3115.4,3114.6,0.252]
[1767979398579,0.96377261,3115.4,3114.6,3.46263841]
[1767979398881,0.96377261,3115.4,3114.6,0.252]
[1767979399108,0.96377261,3115.4,3114.5,0.00080152]
[1767979399449,0.97979209,3115.4,3114.5,0.00080152]
[1767979399648,0.96377261,3115.2,3114.5,0.00080152]
[1767979400149,0.96377261,3115.0,3114.5,0.00080152]
[1767979402558,1.13606991,3115.3,3114.5,0.00080152]
[1767979402764,0.96377261,3115.6,3114.5,0.00080152]
[1767979402967,3.21027555,3115.8,3114.6,0.97367089]
[1767979403264,0.00080192,3115.8,3114.6,0.97367089]
[1767979404290,0.00080192,3115.8,3114.7,7.39483503]
[1767979404592,0.00080192,3115.8,3114.8,0.7394835]
[1767979406181,0.00080192,3115.8,3114.8,1.71315439]
[1767979406490,0.00080192,3115.8,3114.9,6.42075186]
[1767979406662,0.00080192,3115.8,3115.0,0.97367089]
[1767979406870,0.00080192,3115.8,3115.1,0.252]
[1767979407279,0.00080192,3115.8,3115.1,0.76464228]
[1767979407460,0.00080192,3115.8,3115.1,1.01664228]
[1767979408083,0.00080192,3115.8,3115.2,0.97367089]
[1767979408285,0.00080192,3115.8,3115.1,1.01664228]
[1767979408286,0.254,3116.5,3115.4,0.97367089]
[1767979408472,0.002,3116.5,3115.5,0.97448939]
[1767979410517,0.002,3116.5,3115.6,7.39298017]
[1767979410693,0.002,3116.5,3115.7,0.99137987]
[1767979410872,0.002,3116.5,3115.8,0.252]
[1767979411571,0.96577261,3116.5,3115.5,0.0008185]
[1767979411830,0.96577261,3116.5,3115.5,3.46256407]
[1767979412312,0.96577261,3116.5,3115.5,0.2528185]
[1767979412508,3.2088307,3116.4,3115.5,3.46253155]
[1767979412809,4.17454961,3116.5,3115.5,4.12986066]
[1767979413506,4.17454961,3116.5,3115.5,7.33961832]
[1767979414009,4.17454961,3116.5,3115.5,4.12986066]
[1767979414312,0.93714267,3116.4,3115.5,0.0008185]
[1767979415311,0.93714267,3116.3,3115.5,0.0008185]
[1767979416816,0.002,3116.5,3115.5,0.0008185]
[1767979417702,0.93914267,3116.5,3115.5,0.0008185]
[1767979419318,0.93914267,3116.5,3115.7,3.20955162]
[1767979419531,0.93714267,3116.4,3115.7,3.20955162]
[1767979420401,0.93714267,3116.4,3115.8,0.001]
[1767979420601,0.002,3116.2,3115.8,0.001]
[1767979424317,0.002,3116.2,3115.8,0.95149742]
[1767979424620,0.002,3116.5,3115.8,0.95149742]
[1767979424806,0.00280192,3116.8,3116.0,0.95049742]
[1767979425120,0.00280192,3116.8,3116.2,0.95049742]
[1767979426189,0.00280192,3116.8,3116.3,3.20893367]
[1767979426403,0.00280192,3116.8,3116.2,3.20898764]
[1767979427636,0.93994459,3116.8,3116.0,3.20923171]
[1767979427808,0.93994459,3116.8,3116.0,0.252]
[1767979428690,0.93994459,3116.8,3115.8,0.001]
[1767979428894,0.93994459,3116.8,3115.8,0.253]
[1767979429497,0.93994459,3116.8,3115.8,0.001]
[1767979429498,0.95621339,3116.4,3115.8,0.001]